[Event "*** SCC Grand Prix: Titled Tuesday Blitz"]
[Site "Chess.com"]
[Date "2020.08.25"]
[Round "4"]
[White "alexgo05"]
[Black "Maksimus1998"]
[Result "0-1"]
[WhiteElo "2356"]
[BlackElo "2601"]
[TimeControl "180+1"]
[EndTime "10:41:27 PDT"]
[Termination "Maksimus1998 won on time"]

1. e4 {[%clk 0:03:00.9]} 1... c5 {[%clk 0:03:00.1]} 2. Nf3 {[%clk 0:03:00.9]}
2... d6 {[%clk 0:03:00.7]} 3. d4 {[%clk 0:03:01.1]} 3... cxd4 {[%clk 0:03:01.6]}
4. Nxd4 {[%clk 0:03:01.5]} 4... Nf6 {[%clk 0:03:02.2]} 5. Nc3 {[%clk 0:03:02.1]}
5... Bd7 {[%clk 0:03:02.9]} 6. Bg5 {[%clk 0:03:01.5]} 6... e6 {[%clk 0:03:02.3]}
7. f4 {[%clk 0:03:01]} 7... h6 {[%clk 0:03:02.6]} 8. Bh4 {[%clk 0:02:59.4]} 8...
a6 {[%clk 0:03:01.8]} 9. Qf3 {[%clk 0:02:54.2]} 9... Qc7 {[%clk 0:02:56.2]} 10.
O-O-O {[%clk 0:02:51]} 10... Be7 {[%clk 0:02:56.1]} 11. g4 {[%clk 0:02:42.9]}
11... Nc6 {[%clk 0:02:52]} 12. Nb3 {[%clk 0:02:17.8]} 12... b5 {[%clk
0:02:41.9]} 13. Bf2 {[%clk 0:02:14.5]} 13... b4 {[%clk 0:02:40.7]} 14. Ne2
{[%clk 0:02:11]} 14... a5 {[%clk 0:02:37.8]} 15. Nbd4 {[%clk 0:01:38.5]} 15...
Nxd4 {[%clk 0:02:34.2]} 16. Nxd4 {[%clk 0:01:38.2]} 16... Rc8 {[%clk 0:02:33.6]}
17. Bd3 {[%clk 0:01:26.4]} 17... a4 {[%clk 0:02:28.3]} 18. Kb1 {[%clk
0:01:21.8]} 18... a3 {[%clk 0:02:26.7]} 19. f5 {[%clk 0:01:09.8]} 19... e5
{[%clk 0:02:21.6]} 20. Nb3 {[%clk 0:00:46]} 20... axb2 {[%clk 0:02:13.7]} 21. h4
{[%clk 0:00:42]} 21... Ba4 {[%clk 0:01:54.5]} 22. g5 {[%clk 0:00:36.5]} 22...
Nd7 {[%clk 0:01:54.4]} 23. Be3 {[%clk 0:00:28.7]} 23... h5 {[%clk 0:01:37.4]}
24. Rd2 {[%clk 0:00:25.4]} 24... Nb6 {[%clk 0:01:36.5]} 25. Bxb6 {[%clk
0:00:23.6]} 25... Qxb6 {[%clk 0:01:36.4]} 26. Rhd1 {[%clk 0:00:24.5]} 26... Ra8
{[%clk 0:01:18.6]} 27. f6 {[%clk 0:00:23.2]} 27... gxf6 {[%clk 0:01:16.2]} 28.
gxf6 {[%clk 0:00:23.2]} 28... Bf8 {[%clk 0:01:16.8]} 29. Bc4 {[%clk 0:00:20.8]}
29... Rh6 {[%clk 0:01:10.2]} 30. Kxb2 {[%clk 0:00:15.8]} 30... Rc8 {[%clk
0:01:08]} 31. Qd3 {[%clk 0:00:15.8]} 31... Rxf6 {[%clk 0:01:05.3]} 32. Rg2
{[%clk 0:00:15.3]} 32... Rf4 {[%clk 0:00:59.8]} 33. Rg8 {[%clk 0:00:14.6]} 33...
Ke7 {[%clk 0:00:47.8]} 34. Qd5 {[%clk 0:00:12.4]} 34... Bxb3 {[%clk 0:00:37.4]}
35. cxb3 {[%clk 0:00:11.9]} 35... Rf2+ {[%clk 0:00:36.3]} 36. Rd2 {[%clk
0:00:12]} 36... Rxd2+ {[%clk 0:00:35.9]} 37. Qxd2 {[%clk 0:00:12.9]} 37... Qd4+
{[%clk 0:00:35.7]} 38. Qxd4 {[%clk 0:00:12.8]} 38... exd4 {[%clk 0:00:36.6]} 39.
Kc2 {[%clk 0:00:12.7]} 39... Ra8 {[%clk 0:00:35.1]} 40. Kd3 {[%clk 0:00:12.4]}
40... Rxa2 {[%clk 0:00:35]} 41. Kxd4 {[%clk 0:00:12.9]} 41... Rh2 {[%clk
0:00:35.1]} 42. Rg5 {[%clk 0:00:11]} 42... Rxh4 {[%clk 0:00:34.8]} 43. Be2
{[%clk 0:00:11.6]} 43... Rh2 {[%clk 0:00:32.2]} 44. Bxh5 {[%clk 0:00:10.7]}
44... Bh6 {[%clk 0:00:28.1]} 45. Rf5 {[%clk 0:00:10.7]} 45... f6 {[%clk
0:00:28.2]} 46. Kc4 {[%clk 0:00:10.5]} 46... Bd2 {[%clk 0:00:28.2]} 47. Bg4
{[%clk 0:00:07.2]} 47... Rg2 {[%clk 0:00:27.7]} 48. Bf3 {[%clk 0:00:07.3]} 48...
Rg1 {[%clk 0:00:26.1]} 49. Rb5 {[%clk 0:00:02.3]} 49... Rc1+ {[%clk 0:00:25.3]}
50. Kd5 {[%clk 0:00:02.6]} 50... Rc3 {[%clk 0:00:18.9]} 51. Rb7+ {[%clk
0:00:02.5]} 51... Kf8 {[%clk 0:00:18.4]} 52. Kxd6 {[%clk 0:00:01.4]} 52... Rxf3
{[%clk 0:00:18.2]} 53. Ke6 {[%clk 0:00:01.6]} 53... Bc3 {[%clk 0:00:17.2]} 0-1

[Event "*** SCC Grand Prix: Titled Tuesday Blitz"]
[Site "Chess.com"]
[Date "2020.08.25"]
[Round "4"]
[White "ThePatrick27"]
[Black "Witik"]
[Result "0-1"]
[WhiteElo "2456"]
[BlackElo "2660"]
[TimeControl "180+1"]
[EndTime "10:41:28 PDT"]
[Termination "Witik won by resignation"]

1. d4 {[%clk 0:02:46.4]} 1... Nf6 {[%clk 0:02:57.8]} 2. c4 {[%clk 0:02:46.5]}
2... g6 {[%clk 0:02:57.4]} 3. Nc3 {[%clk 0:02:47.1]} 3... Bg7 {[%clk 0:02:58]}
4. e4 {[%clk 0:02:47.8]} 4... d6 {[%clk 0:02:58.4]} 5. Nf3 {[%clk 0:02:48.4]}
5... O-O {[%clk 0:02:58.8]} 6. Be2 {[%clk 0:02:49]} 6... e5 {[%clk 0:02:58.9]}
7. Be3 {[%clk 0:02:49.5]} 7... Ng4 {[%clk 0:02:58.4]} 8. Bg5 {[%clk 0:02:50]}
8... f6 {[%clk 0:02:58.6]} 9. Bh4 {[%clk 0:02:50.7]} 9... g5 {[%clk 0:02:59.1]}
10. Bg3 {[%clk 0:02:51.3]} 10... Nh6 {[%clk 0:02:59.7]} 11. c5 {[%clk
0:02:51.9]} 11... Nc6 {[%clk 0:02:56.2]} 12. cxd6 {[%clk 0:02:50.4]} 12... cxd6
{[%clk 0:02:56.4]} 13. dxe5 {[%clk 0:02:51]} 13... dxe5 {[%clk 0:02:53]} 14.
Qd5+ {[%clk 0:02:49.7]} 14... Kh8 {[%clk 0:02:46.6]} 15. Qxd8 {[%clk 0:02:44.1]}
15... Rxd8 {[%clk 0:02:45.4]} 16. Bc4 {[%clk 0:02:43.3]} 16... Bg4 {[%clk
0:02:29.7]} 17. Ng1 {[%clk 0:02:22.2]} 17... Nd4 {[%clk 0:02:28]} 18. Rc1 {[%clk
0:02:21.4]} 18... Rac8 {[%clk 0:02:26.3]} 19. Bd5 {[%clk 0:02:07.2]} 19... b5
{[%clk 0:01:54.9]} 20. f3 {[%clk 0:02:06.9]} 20... Bh5 {[%clk 0:01:48.2]} 21.
Bf2 {[%clk 0:01:45.2]} 21... Bf7 {[%clk 0:01:44.6]} 22. Bxf7 {[%clk 0:01:42.3]}
22... Nxf7 {[%clk 0:01:44]} 23. Nge2 {[%clk 0:01:26.3]} 23... b4 {[%clk
0:01:40.8]} 24. Nd5 {[%clk 0:01:22.8]} 24... Rxc1+ {[%clk 0:01:36.4]} 25. Nxc1
{[%clk 0:01:23.7]} 25... Rc8 {[%clk 0:01:36.9]} 26. Kd1 {[%clk 0:01:13.1]} 26...
a5 {[%clk 0:01:30.5]} 27. Bxd4 {[%clk 0:01:09]} 27... exd4 {[%clk 0:01:30.4]}
28. Nd3 {[%clk 0:01:09.6]} 28... Nd6 {[%clk 0:01:20.2]} 29. Kd2 {[%clk 0:01:03]}
29... Nc4+ {[%clk 0:01:10.1]} 30. Ke2 {[%clk 0:01:03.3]} 30... Nxb2 {[%clk
0:01:10.2]} 31. Nxb2 {[%clk 0:01:01.2]} 31... Rc2+ {[%clk 0:01:09.8]} 32. Kd3
{[%clk 0:01:01.9]} 32... Rxb2 {[%clk 0:01:10.6]} 33. Rc1 {[%clk 0:01:00.6]}
33... h5 {[%clk 0:01:00.3]} 34. Rc8+ {[%clk 0:01:00.3]} 34... Kh7 {[%clk
0:01:00.4]} 35. Rc7 {[%clk 0:01:01.2]} 35... Rxg2 {[%clk 0:00:40.3]} 36. Nxf6+
{[%clk 0:00:34.7]} 36... Kg6 {[%clk 0:00:39.7]} 37. Nd5 {[%clk 0:00:32.4]} 37...
Be5 {[%clk 0:00:30.7]} 38. Rc6+ {[%clk 0:00:29.4]} 38... Kf7 {[%clk 0:00:25.7]}
39. h4 {[%clk 0:00:27.2]} 39... gxh4 {[%clk 0:00:12.2]} 40. f4 {[%clk
0:00:27.5]} 40... Rg3+ {[%clk 0:00:11.6]} 41. Ke2 {[%clk 0:00:24.8]} 41... d3+
{[%clk 0:00:10.7]} 42. Kd2 {[%clk 0:00:24]} 42... Bc3+ {[%clk 0:00:10.9]} 43.
Nxc3 {[%clk 0:00:21.4]} 43... bxc3+ {[%clk 0:00:11.8]} 44. Rxc3 {[%clk
0:00:20.7]} 44... h3 {[%clk 0:00:11.5]} 45. Rc5 {[%clk 0:00:20.6]} 45... Kg6
{[%clk 0:00:07.8]} 46. Rc6+ {[%clk 0:00:19.8]} 46... Kh7 {[%clk 0:00:08.1]} 47.
Rc5 {[%clk 0:00:20]} 47... Kh6 {[%clk 0:00:06.9]} 48. Rc6+ {[%clk 0:00:20.3]}
48... Rg6 {[%clk 0:00:07]} 49. Rc1 {[%clk 0:00:20.9]} 49... h2 {[%clk
0:00:07.2]} 50. Rh1 {[%clk 0:00:21.1]} 50... Rg2+ {[%clk 0:00:07.6]} 51. Kxd3
{[%clk 0:00:21.6]} 51... Rxa2 {[%clk 0:00:08.3]} 52. e5 {[%clk 0:00:22.1]} 52...
Kg6 {[%clk 0:00:07.1]} 53. Ke4 {[%clk 0:00:22.1]} 53... Re2+ {[%clk 0:00:07.5]}
54. Kd5 {[%clk 0:00:22.1]} 54... Kf5 {[%clk 0:00:07.5]} 55. e6 {[%clk
0:00:22.5]} 55... Rd2+ {[%clk 0:00:07.4]} 56. Kc5 {[%clk 0:00:22.2]} 56... Kxe6
{[%clk 0:00:08.3]} 57. Kb5 {[%clk 0:00:22.2]} 57... Kf5 {[%clk 0:00:08.4]} 58.
Kxa5 {[%clk 0:00:22.9]} 58... Kxf4 {[%clk 0:00:08.9]} 59. Kb4 {[%clk 0:00:23.6]}
59... Kg3 {[%clk 0:00:09.3]} 60. Kc3 {[%clk 0:00:24.3]} 60... Rf2 {[%clk
0:00:09.7]} 0-1

[Event "*** SCC Grand Prix: Titled Tuesday Blitz"]
[Site "Chess.com"]
[Date "2020.08.25"]
[Round "4"]
[White "paulrusan"]
[Black "Gvetadze"]
[Result "1/2-1/2"]
[WhiteElo "2197"]
[BlackElo "2399"]
[TimeControl "180+1"]
[EndTime "10:41:28 PDT"]
[Termination "Game drawn by stalemate"]

1. e4 {[%clk 0:03:00.9]} 1... c5 {[%clk 0:03:00.9]} 2. b4 {[%clk 0:03:00.5]}
2... cxb4 {[%clk 0:02:59.7]} 3. Bb2 {[%clk 0:03:00.4]} 3... Nc6 {[%clk
0:02:58.4]} 4. d4 {[%clk 0:03:00]} 4... d5 {[%clk 0:02:57.9]} 5. exd5 {[%clk
0:03:00.3]} 5... Qxd5 {[%clk 0:02:57.6]} 6. c4 {[%clk 0:03:01]} 6... bxc3 {[%clk
0:02:57.3]} 7. Nxc3 {[%clk 0:03:01.3]} 7... Qa5 {[%clk 0:02:57.3]} 8. d5 {[%clk
0:02:59.8]} 8... Ne5 {[%clk 0:02:54.8]} 9. Qd4 {[%clk 0:02:59.7]} 9... Nd7
{[%clk 0:02:46.8]} 10. Nf3 {[%clk 0:02:58.9]} 10... Ngf6 {[%clk 0:02:46.8]} 11.
Bc4 {[%clk 0:02:58.7]} 11... g6 {[%clk 0:02:46.4]} 12. d6 {[%clk 0:02:50.3]}
12... e5 {[%clk 0:02:44.9]} 13. Bxf7+ {[%clk 0:02:41.6]} 13... Kxf7 {[%clk
0:02:42.6]} 14. Qc4+ {[%clk 0:02:41.6]} 14... Kg7 {[%clk 0:02:38.8]} 15. Ng5
{[%clk 0:02:35.7]} 15... Bxd6 {[%clk 0:02:17.1]} 16. O-O-O {[%clk 0:02:25]}
16... Rf8 {[%clk 0:01:59.2]} 17. Rxd6 {[%clk 0:02:15.2]} 17... Nb6 {[%clk
0:01:58.9]} 18. Qh4 {[%clk 0:02:05.5]} 18... Nh5 {[%clk 0:01:41.9]} 19. Nge4
{[%clk 0:01:19.4]} 19... Nc4 {[%clk 0:01:32.9]} 20. Qe7+ {[%clk 0:01:09]} 20...
Rf7 {[%clk 0:01:32]} 21. Qd8 {[%clk 0:01:09.4]} 21... Qxd8 {[%clk 0:01:18.3]}
22. Rxd8 {[%clk 0:01:08.9]} 22... b6 {[%clk 0:01:12.1]} 23. Rhd1 {[%clk
0:01:02.6]} 23... Bb7 {[%clk 0:01:10.3]} 24. Rxa8 {[%clk 0:01:02.7]} 24... Bxa8
{[%clk 0:01:10.1]} 25. g3 {[%clk 0:00:57.6]} 25... Nxb2 {[%clk 0:01:01.7]} 26.
Kxb2 {[%clk 0:00:57.4]} 26... Bc6 {[%clk 0:00:57]} 27. Rd6 {[%clk 0:00:54.2]}
27... Rc7 {[%clk 0:00:56.4]} 28. Ng5 {[%clk 0:00:49.5]} 28... Rc8 {[%clk
0:00:44]} 29. Nce4 {[%clk 0:00:47.7]} 29... Bxe4 {[%clk 0:00:38.5]} 30. Nxe4
{[%clk 0:00:47.8]} 30... Rc7 {[%clk 0:00:34.4]} 31. Ng5 {[%clk 0:00:46.8]} 31...
Kh6 {[%clk 0:00:34]} 32. h4 {[%clk 0:00:41.7]} 32... Ng7 {[%clk 0:00:28.5]} 33.
g4 {[%clk 0:00:35.5]} 33... Re7 {[%clk 0:00:24.6]} 34. Rf6 {[%clk 0:00:30.2]}
34... Ne8 {[%clk 0:00:24.4]} 35. Rf7 {[%clk 0:00:21.2]} 35... Rxf7 {[%clk
0:00:23.2]} 36. Nxf7+ {[%clk 0:00:21.3]} 36... Kg7 {[%clk 0:00:23.9]} 37. Nxe5
{[%clk 0:00:21.6]} 37... Nd6 {[%clk 0:00:24.6]} 38. f3 {[%clk 0:00:20.2]} 38...
Kf6 {[%clk 0:00:24.8]} 39. Nd7+ {[%clk 0:00:18.5]} 39... Ke7 {[%clk 0:00:23.5]}
40. Ne5 {[%clk 0:00:18.7]} 40... Ke6 {[%clk 0:00:23.6]} 41. Nc6 {[%clk 0:00:19]}
41... a6 {[%clk 0:00:20.7]} 42. Kc3 {[%clk 0:00:19]} 42... Nb5+ {[%clk
0:00:17.6]} 43. Kd3 {[%clk 0:00:17.9]} 43... a5 {[%clk 0:00:16]} 44. Nd4+ {[%clk
0:00:17.9]} 44... Nxd4 {[%clk 0:00:15.6]} 45. Kxd4 {[%clk 0:00:18.4]} 45... Kd6
{[%clk 0:00:16.3]} 46. f4 {[%clk 0:00:18.5]} 46... b5 {[%clk 0:00:16.7]} 47. a3
{[%clk 0:00:16.7]} 47... b4 {[%clk 0:00:15]} 48. axb4 {[%clk 0:00:16.6]} 48...
axb4 {[%clk 0:00:15.7]} 49. Kc4 {[%clk 0:00:17]} 49... b3 {[%clk 0:00:16.2]} 50.
Kxb3 {[%clk 0:00:17.2]} 50... Kd5 {[%clk 0:00:17.1]} 51. Kc3 {[%clk 0:00:16.2]}
51... Ke4 {[%clk 0:00:17.3]} 52. f5 {[%clk 0:00:16.6]} 52... gxf5 {[%clk
0:00:17.7]} 53. gxf5 {[%clk 0:00:16.9]} 53... Kxf5 {[%clk 0:00:17.7]} 54. Kd4
{[%clk 0:00:17.3]} 54... Kg4 {[%clk 0:00:18.2]} 55. Ke4 {[%clk 0:00:17.6]} 55...
h5 {[%clk 0:00:18.9]} 56. Ke3 {[%clk 0:00:17.1]} 56... Kxh4 {[%clk 0:00:19.5]}
57. Kf2 {[%clk 0:00:17.3]} 57... Kh3 {[%clk 0:00:19.1]} 58. Kg1 {[%clk
0:00:17.5]} 58... h4 {[%clk 0:00:19]} 59. Kh1 {[%clk 0:00:17.6]} 59... Kg3
{[%clk 0:00:19.9]} 60. Kg1 {[%clk 0:00:17.7]} 60... h3 {[%clk 0:00:20.8]} 61.
Kh1 {[%clk 0:00:18.1]} 61... h2 {[%clk 0:00:21.7]} 1/2-1/2

[Event "*** SCC Grand Prix: Titled Tuesday Blitz"]
[Site "Chess.com"]
[Date "2020.08.25"]
[Round "4"]
[White "Artur0208"]
[Black "ChessBitl"]
[Result "0-1"]
[WhiteElo "2679"]
[BlackElo "2494"]
[TimeControl "180+1"]
[EndTime "10:41:34 PDT"]
[Termination "ChessBitl won by resignation"]

1. d4 {[%clk 0:03:00.9]} 1... Nf6 {[%clk 0:02:58.3]} 2. c4 {[%clk 0:03:01.4]}
2... g6 {[%clk 0:02:58.7]} 3. Nc3 {[%clk 0:03:01.6]} 3... Bg7 {[%clk 0:02:59.3]}
4. e4 {[%clk 0:03:01.5]} 4... d6 {[%clk 0:02:59.8]} 5. Be2 {[%clk 0:03:02]} 5...
O-O {[%clk 0:02:59.8]} 6. Be3 {[%clk 0:03:02.6]} 6... Nc6 {[%clk 0:02:58.9]} 7.
Nf3 {[%clk 0:03:01.3]} 7... Bg4 {[%clk 0:02:58.1]} 8. d5 {[%clk 0:02:58.2]} 8...
Bxf3 {[%clk 0:02:53.3]} 9. Bxf3 {[%clk 0:02:59.1]} 9... Ne5 {[%clk 0:02:53.7]}
10. Be2 {[%clk 0:02:59.7]} 10... c6 {[%clk 0:02:50.2]} 11. O-O {[%clk
0:02:59.6]} 11... e6 {[%clk 0:02:48.3]} 12. dxe6 {[%clk 0:02:58.4]} 12... fxe6
{[%clk 0:02:47.9]} 13. f4 {[%clk 0:02:56.5]} 13... Nf7 {[%clk 0:02:44.3]} 14.
Qd2 {[%clk 0:02:50.3]} 14... Qe7 {[%clk 0:02:01.6]} 15. Bf3 {[%clk 0:02:49]}
15... e5 {[%clk 0:01:58.6]} 16. f5 {[%clk 0:02:36.6]} 16... gxf5 {[%clk
0:01:57.7]} 17. exf5 {[%clk 0:02:37.5]} 17... e4 {[%clk 0:01:58.2]} 18. Be2
{[%clk 0:02:37.3]} 18... Rad8 {[%clk 0:01:49.6]} 19. Rad1 {[%clk 0:02:37.8]}
19... d5 {[%clk 0:01:45.1]} 20. cxd5 {[%clk 0:02:38.6]} 20... Nxd5 {[%clk
0:01:36.6]} 21. Nxd5 {[%clk 0:02:38.2]} 21... cxd5 {[%clk 0:01:37.1]} 22. Bd4
{[%clk 0:02:25.2]} 22... Bxd4+ {[%clk 0:01:32.8]} 23. Qxd4 {[%clk 0:02:26.1]}
23... Ne5 {[%clk 0:01:33.5]} 24. Qxa7 {[%clk 0:01:26.9]} 24... Nc6 {[%clk
0:01:25.2]} 25. Qe3 {[%clk 0:01:25.8]} 25... Qf6 {[%clk 0:01:24.1]} 26. Rd2
{[%clk 0:01:20.1]} 26... Qe5 {[%clk 0:01:20.7]} 27. Qg3+ {[%clk 0:00:48.3]}
27... Qxg3 {[%clk 0:01:16]} 28. hxg3 {[%clk 0:00:49.2]} 28... Kg7 {[%clk
0:01:16.8]} 29. g4 {[%clk 0:00:48.8]} 29... d4 {[%clk 0:01:13.3]} 30. Bb5 {[%clk
0:00:46.7]} 30... Kf6 {[%clk 0:01:08.3]} 31. Re1 {[%clk 0:00:45.4]} 31... Rfe8
{[%clk 0:01:00.9]} 32. Kh2 {[%clk 0:00:41.5]} 32... e3 {[%clk 0:00:56.8]} 33.
Rdd1 {[%clk 0:00:39]} 33... Re4 {[%clk 0:00:56.1]} 34. Kg3 {[%clk 0:00:38.4]}
34... Ne5 {[%clk 0:00:52.6]} 35. Be2 {[%clk 0:00:38.9]} 35... Rg8 {[%clk
0:00:45.1]} 36. Bf3 {[%clk 0:00:38.8]} 36... Rexg4+ {[%clk 0:00:37.5]} 37. Bxg4
{[%clk 0:00:39.2]} 37... Rxg4+ {[%clk 0:00:38]} 38. Kh3 {[%clk 0:00:40.1]} 38...
Kxf5 {[%clk 0:00:31.5]} 39. Rc1 {[%clk 0:00:37.8]} 39... Kf4 {[%clk 0:00:23.3]}
40. Rf1+ {[%clk 0:00:34.5]} 40... Ke4 {[%clk 0:00:18.7]} 41. Rc5 {[%clk
0:00:31.4]} 41... Rg7 {[%clk 0:00:16.5]} 42. Rf8 {[%clk 0:00:28.6]} 42... e2
{[%clk 0:00:16]} 43. Re8 {[%clk 0:00:26.8]} 43... Rg5 {[%clk 0:00:15.5]} 44. Rc1
{[%clk 0:00:24.1]} 44... d3 {[%clk 0:00:15.2]} 45. Rd8 {[%clk 0:00:24.6]} 45...
h5 {[%clk 0:00:11.8]} 46. g3 {[%clk 0:00:23.5]} 46... Rf5 {[%clk 0:00:11.1]} 47.
Kg2 {[%clk 0:00:23.4]} 47... Ke3 {[%clk 0:00:08.5]} 48. b4 {[%clk 0:00:17.5]}
48... Rf2+ {[%clk 0:00:07.8]} 49. Kh3 {[%clk 0:00:17.6]} 49... d2 {[%clk
0:00:07.3]} 50. Rc3+ {[%clk 0:00:17.3]} 50... Ke4 {[%clk 0:00:06.7]} 51. Rxd2
{[%clk 0:00:13.1]} 51... e1=Q {[%clk 0:00:05.8]} 52. Rxf2 {[%clk 0:00:14]} 52...
Qxf2 {[%clk 0:00:05.6]} 0-1

[Event "*** SCC Grand Prix: Titled Tuesday Blitz"]
[Site "Chess.com"]
[Date "2020.08.25"]
[Round "4"]
[White "Mr_Sinigami"]
[Black "Firouzja2003"]
[Result "1/2-1/2"]
[WhiteElo "2543"]
[BlackElo "2974"]
[TimeControl "180+1"]
[EndTime "10:41:35 PDT"]
[Termination "Game drawn by repetition"]

1. d4 {[%clk 0:03:00.9]} 1... d5 {[%clk 0:03:00.1]} 2. Nf3 {[%clk 0:03:00.7]}
2... e6 {[%clk 0:03:00.7]} 3. Bf4 {[%clk 0:03:00.5]} 3... Nf6 {[%clk 0:03:01.2]}
4. e3 {[%clk 0:03:00.4]} 4... Bd6 {[%clk 0:03:01.8]} 5. Bg3 {[%clk 0:02:59.8]}
5... O-O {[%clk 0:03:02.2]} 6. Nbd2 {[%clk 0:02:58.8]} 6... c5 {[%clk
0:03:02.6]} 7. c3 {[%clk 0:02:58.7]} 7... Nc6 {[%clk 0:03:03.1]} 8. Bb5 {[%clk
0:02:58.4]} 8... Bxg3 {[%clk 0:03:01.9]} 9. hxg3 {[%clk 0:02:57.8]} 9... Qb6
{[%clk 0:03:02.8]} 10. Qe2 {[%clk 0:01:49.7]} 10... Ne7 {[%clk 0:03:01.9]} 11.
Rb1 {[%clk 0:01:41.6]} 11... Ng6 {[%clk 0:01:52.9]} 12. Bd3 {[%clk 0:01:34.2]}
12... Bd7 {[%clk 0:01:52.5]} 13. Ne5 {[%clk 0:01:30.3]} 13... Ba4 {[%clk
0:01:44.1]} 14. g4 {[%clk 0:01:18.7]} 14... c4 {[%clk 0:01:40.6]} 15. Bxg6
{[%clk 0:01:02]} 15... fxg6 {[%clk 0:01:41.5]} 16. g5 {[%clk 0:00:54.1]} 16...
Nd7 {[%clk 0:01:41.6]} 17. Nxd7 {[%clk 0:00:52.5]} 17... Bxd7 {[%clk 0:01:41.8]}
18. Nf3 {[%clk 0:00:52.5]} 18... e5 {[%clk 0:01:42.1]} 19. Nxe5 {[%clk
0:00:49.3]} 19... Bf5 {[%clk 0:01:42.7]} 20. Rd1 {[%clk 0:00:48.4]} 20... Rae8
{[%clk 0:01:41.3]} 21. f3 {[%clk 0:00:37]} 21... Rxe5 {[%clk 0:00:52.6]} 22.
dxe5 {[%clk 0:00:35.9]} 22... Bd3 {[%clk 0:00:53.2]} 23. Qf2 {[%clk 0:00:25.5]}
23... Re8 {[%clk 0:00:46.6]} 24. f4 {[%clk 0:00:24.9]} 24... Re6 {[%clk
0:00:45.2]} 25. Rd2 {[%clk 0:00:22.3]} 25... a5 {[%clk 0:00:34.2]} 26. Qg3
{[%clk 0:00:21.4]} 26... a4 {[%clk 0:00:29.7]} 27. a3 {[%clk 0:00:21.1]} 27...
Re8 {[%clk 0:00:24.4]} 28. Kf2 {[%clk 0:00:20.6]} 28... Rf8 {[%clk 0:00:22.6]}
29. Qh4 {[%clk 0:00:18.9]} 29... Kf7 {[%clk 0:00:20.9]} 30. Qxh7 {[%clk
0:00:16.9]} 30... Qc5 {[%clk 0:00:16.1]} 31. Qh4 {[%clk 0:00:15.4]} 31... Ke8
{[%clk 0:00:15.1]} 32. Qg3 {[%clk 0:00:14.8]} 32... Kd7 {[%clk 0:00:12.8]} 33.
Rh7 {[%clk 0:00:14.1]} 33... Qe7 {[%clk 0:00:11.9]} 34. Qg4+ {[%clk 0:00:13.2]}
34... Kc6 {[%clk 0:00:09.3]} 35. Kg1 {[%clk 0:00:12.9]} 35... Qc5 {[%clk
0:00:06.6]} 36. Qg3 {[%clk 0:00:12.5]} 36... Qe7 {[%clk 0:00:06.7]} 37. Qf2
{[%clk 0:00:12.3]} 37... Be4 {[%clk 0:00:05.4]} 38. Rd4 {[%clk 0:00:11.5]} 38...
Bd3 {[%clk 0:00:04]} 39. Qd2 {[%clk 0:00:11.4]} 39... b5 {[%clk 0:00:02.5]} 40.
Rxd3 {[%clk 0:00:11.2]} 40... cxd3 {[%clk 0:00:03.4]} 41. Qxd3 {[%clk
0:00:11.5]} 41... Qf7 {[%clk 0:00:03]} 42. Qd4 {[%clk 0:00:10.8]} 42... Qf5
{[%clk 0:00:03.4]} 43. Rxg7 {[%clk 0:00:10.3]} 43... Qb1+ {[%clk 0:00:03.8]} 44.
Kf2 {[%clk 0:00:09]} 44... Qc2+ {[%clk 0:00:03.6]} 45. Kf3 {[%clk 0:00:08.4]}
45... Qb1 {[%clk 0:00:03.8]} 46. Re7 {[%clk 0:00:07.3]} 46... Qf1+ {[%clk
0:00:03.7]} 47. Kg3 {[%clk 0:00:06.8]} 47... Qe1+ {[%clk 0:00:04.2]} 48. Kf3
{[%clk 0:00:06.1]} 48... Qf1+ {[%clk 0:00:04.5]} 49. Kg3 {[%clk 0:00:05.6]}
49... Qe1+ {[%clk 0:00:05.1]} 50. Kg4 {[%clk 0:00:03.7]} 50... Qe2+ {[%clk
0:00:03.7]} 51. Kg3 {[%clk 0:00:03.7]} 51... Qe1+ {[%clk 0:00:03.8]} 1/2-1/2